Cogmind - Beta 16 @@@ ROGUE MODE // 2025.11.07 @ 13:13:26 Player: Demo Result: Destroyed by S-27 Virus with Autogun Performance ------------- Evolutions (4) 2000 Regions Visited (6) 1200 Robots Destroyed (5) 25 Value Destroyed (139) 139 Prototype IDs (2) 40 Alien Tech Used (0) 0 Bonus (1298) 1298 TOTAL SCORE: 4702 Bonus ------- Pacifist 364 Follower Combat Kills 134 Registered with UFD 300 Met Optimus in HQ 500 Cogmind --------- Core Integrity 0/850 Matter 201/300 Energy 156/160 System Corruption 7% Temperature Cool (8) Movement Flying (27) Location -6/Factory Parts ------- > --- POWER (2) -------- Light Nuclear Core > --- PROPULSION (9) --- VTOL Module Surge Thruster Surge Thruster Nuclear Pulse Thruster > --- UTILITY (2) ------ Advanced Signal Interpreter Advanced Melee Analysis Suite > --- WEAPON (2) ------- Power Sword > --- INVENTORY (5) ---- Angular Momentum Engine Matter Compressor (0) Shock Bomb Launcher Power Sword Companion Sword Peak State ------------ > --- POWER ------------ Light Nuclear Core > --- PROPULSION ------- VTOL Module Surge Thruster Surge Thruster Nuclear Pulse Thruster > --- UTILITY ---------- Advanced Signal Interpreter Advanced Melee Analysis Suite > --- WEAPON ----------- Power Sword > --- INVENTORY -------- Angular Momentum Engine Matter Compressor Power Sword Companion Sword [Rating: 33] Favorites ----------- Power Light Nuclear Core Power Core Light Nuclear Core Propulsion Light Treads Treads Light Treads Leg Armored Leg Wheel Compact Wheel Hover Unit Aerolev Unit Flight Unit Surge Thruster Utility Advanced Melee Analysis Suite Device Improved Sensor Array Processor Advanced Melee Analysis Suite Weapon Power Sword Slashing Weapon Power Sword Build | -11 -10 -10 -10 -8 -8 -6 ------- Run | Yrd Mat Min Sub Rec Scr Fac Slots Evolved 8 | . . . . . . 8 Power 1 | . . . . . . 1 Propulsion 7 | . . . . . . 7 Utility . | . . . . . . . Weapon . | . . . . . . . Parts Attached 18 | 3 . . . . . 15 Power 1 | . . . . . . 1 Engine . | . . . . . . . Core 1 | . . . . . . 1 Reactor . | . . . . . . . Propulsion 11 | 3 . . . . . 8 Treads 2 | 2 . . . . . . Leg 1 | . . . . . . 1 Wheel 2 | 1 . . . . . 1 Hover 1 | . . . . . . 1 Flight 5 | . . . . . . 5 Utility 4 | . . . . . . 4 Device 1 | . . . . . . 1 Storage . | . . . . . . . Processor 3 | . . . . . . 3 Hackware . | . . . . . . . Protection . | . . . . . . . Artifact . | . . . . . . . Weapon 2 | . . . . . . 2 Energy Gun . | . . . . . . . Energy Cannon . | . . . . . . . Ballistic Gun . | . . . . . . . Ballistic Cannon . | . . . . . . . Launcher . | . . . . . . . Special Weapon . | . . . . . . . Impact Weapon . | . . . . . . . Slashing Weapon 2 | . . . . . . 2 Piercing Weapon . | . . . . . . . Special Melee Weapon . | . . . . . . . Unidentified Prototypes 2 | . . . . . . 2 Corrupted Parts 1 | . . . . . . 1 System Corruption 4 | . . . . . . 4 Parts Lost 5 | . . 2 . . . 3 Power . | . . . . . . . Propulsion 4 | . . 2 . . . 2 Utility 1 | . . . . . . 1 Weapon . | . . . . . . . Highest Loss Streak 2 | . . 2 . . . 2 To Critical Strikes . | . . . . . . . Average Backups 1 | . . . . . . 3 Power . | . . . . . . . Propulsion . | . . . . . . . Utility . | . . . . . . . Weapon . | . . . . . . 2 Tool/Special . | . . . . . . . Unused Backups 4 | . . . . . . 4 Power 1 | . . . . . . 1 Propulsion . | . . . . . . . Utility 1 | . . . . . . 1 Weapon 2 | . . . . . . 2 Tool/Special . | . . . . . . . Average Slot Usage (%) 19 | . 28 27 . . . 30 Treads 5 | . 28 27 . . . . Flight 5 | . . . . . . 11 Processor 4 | . . . . . . 10 Slashing Weapon 2 | . . . . . . 4 Peak Build Rating 33 | 2 2 2 . . . 33 Average Rating 9 | 1 2 1 . . . 18 On Entrance . | . 2 2 . . . . Avg Prop Armor Cover (%) 34 | 41 41 40 . . . 17 Naked Turns 300 | . . 2 32 109 144 13 Heaviest Build 8 | . . . . . . 8 Greatest Support 18 | 3 3 3 3 3 3 18 Greatest Overweight (x) . | . . . . . . . Average Overweight (x) . | . . . . . . . Largest Inventory Capacity 5 | 5 5 5 5 5 5 5 Average Capacity 5 | 5 5 5 5 5 5 5 Most Carried 5 | . . . . . 1 5 Average Carried 1 | . . . . . . 3 Final Capacity 5 | 5 5 5 5 5 5 5 Final Carried 5 | . . . . . 1 5 Class Distribution -------------------- 79% | Mutant 17% | Scavenger-Sprinter 3% | Commander-Mutant Dominant Class ---------------- Mutant | -10/Materials Mutant | -10/Mines Mutant | -10/Subcaves Mutant | -8/Recycling Mutant | -8/Scraptown Mutant | -6/Factory Resources | -11 -10 -10 -10 -8 -8 -6 ----------- Run | Yrd Mat Min Sub Rec Scr Fac Matter Collected 278 | 179 . . . . . 99 Remotely . | . . . . . . . Salvage Created 114 | . . . . . . 114 Parts 8 | . . . . . . 8 Haulers Intercepted . | . . . . . . . Recyclers Shooed . | . . . . . . . Parts Field Recycled . | . . . . . . . Retrieved Matter . | . . . . . . . Parts Self-Destructed . | . . . . . . . Prevented . | . . . . . . . Parts Restored . | . . . . . . . Kills | -11 -10 -10 -10 -8 -8 -6 ------- Run | Yrd Mat Min Sub Rec Scr Fac Combat Hostiles Destroyed 4 | . . . . . . 4 Melee 4 | . . . . . . 4 Classes Destroyed 3 | . . . . . . 3 Worker 1 | . . . . . . 1 Swarmer 3 | . . . . . . 3 Cutter 1 | . . . . . . 1 Best Kill Streak 3 | . . . . . . 3 Combat Bots Only 3 | . . . . . . 3 Max Kills in Single Turn 1 | . . . . . . 1 Gunslinging . | . . . . . . . Exploded . | . . . . . . . Melee 1 | . . . . . . 1 Uniques/NPCs Destroyed . | . . . . . . . Combat | -11 -10 -10 -10 -8 -8 -6 -------- Run | Yrd Mat Min Sub Rec Scr Fac Hostile Shots Fired 250 | . . 33 28 . . 189 Missed 116 | . . 6 15 . . 95 Hits 134 | . . 27 13 . . 94 Melee 1 | . . . . . . 1 Projectile 133 | . . 27 13 . . 93 Critical Strikes 1 | . . . . . . 1 Damage Taken 1693 | . . 374 103 . 18 1198 Core 1047 | . . 74 103 . 18 852 Absorbed by Shields . | . . . . . . . Core Remaining (%) 61 | 100 . . . . 22 . Volleys Fired . | . . . . . . . Largest . | . . . . . . . Hottest . | . . . . . . . Shots Fired . | . . . . . . . Gun . | . . . . . . . Cannon . | . . . . . . . Launcher . | . . . . . . . Special . | . . . . . . . Kinetic . | . . . . . . . Thermal . | . . . . . . . Explosive . | . . . . . . . Electromagnetic . | . . . . . . . Robot Hit Streak . | . . . . . . . Robot Miss Streak . | . . . . . . . Penetration Max . | . . . . . . . Secondary Targets . | . . . . . . . Shots Hit Robots 9 | . . . . . . 9 Core Hits 5 | . . . . . . 5 Critical Kills . | . . . . . . . Critical Parts Destroyed . | . . . . . . . Critical Strikes 1 | . . . . . . 1 Sever 1 | . . . . . . 1 Melee Attacks 23 | . . . . . . 23 Impact . | . . . . . . . Slashing 23 | . . . . . . 23 Piercing . | . . . . . . . Sneak Attacks 1 | . . . . . . 1 Combat Hostiles . | . . . . . . . Follow-up Attacks . | . . . . . . . Damage Inflicted 474 | . . 13 . . . 461 Guns . | . . . . . . . Cannons . | . . . . . . . Explosions . | . . . . . . . Melee 461 | . . . . . . 461 Ramming 13 | . . 13 . . . . Kinetic . | . . . . . . . Thermal . | . . . . . . . Explosive . | . . . . . . . Electromagnetic . | . . . . . . . Impact . | . . . . . . . Slashing 461 | . . . . . . 461 Piercing . | . . . . . . . Highest Corruption 7 | . . . . . . 7 Average Corruption 6 | . . . . . . 6 Corruption Purged . | . . . . . . . Corruption Blocked . | . . . . . . . Effects 9 | . . . . . . 9 Message Errors 4 | . . . . . . 4 Matter Fused 1 | . . . . . . 1 Heat Flow Errors 1 | . . . . . . 1 Parts Rejected 1 | . . . . . . 1 Data Loss (minor) 2 | . . . . . . 2 Overload Shots . | . . . . . . . Overflow Damage 12 | . . . . . . 12 Projectiles . | . . . . . . . Explosions . | . . . . . . . Melee 12 | . . . . . . 12 Knockbacks . | . . . . . . . Impact . | . . . . . . . Kinetic . | . . . . . . . Secondary . | . . . . . . . Self-Inflicted Damage 6 | . . 6 . . . . Shots . | . . . . . . . Rammed 2 | . . 2 . . . . Targets Rammed 2 | . . 2 . . . . Kicked . | . . . . . . . Crushed . | . . . . . . . Highest Temperature 106 | . . . . . . 106 Average Temperature 29 | . . . . . . 29 Received Heat Transfer 417 | . . 210 39 . . 168 Siege Activations . | . . . . . . . Martial Activations . | . . . . . . . Shielding Activations . | . . . . . . . Robots Disrupted . | . . . . . . . Combat Hostiles . | . . . . . . . Robots Corrupted . | . . . . . . . Combat Hostiles . | . . . . . . . Parts Fried . | . . . . . . . Impact Corruptions . | . . . . . . . Robots Melted . | . . . . . . . Combat Hostiles . | . . . . . . . Parts Melted . | . . . . . . . Heat Transferred . | . . . . . . . Parts Sabotaged . | . . . . . . . Parts Stolen . | . . . . . . . Parts Stripped . | . . . . . . . Power Chain Reactions . | . . . . . . . Alert | -11 -10 -10 -10 -8 -8 -6 ------- Run | Yrd Mat Min Sub Rec Scr Fac Maximum Alert Level 2 | . . . . . . 2 Low Security (%) 60 | 100 100 100 . 100 . 35 Level 1 34 | . . . . . . 55 Level 2 5 | . . . . . . 9 Level 3 . | . . . . . . . Level 4 . | . . . . . . . Level 5 . | . . . . . . . High Security . | . . . . . . . Max Security . | . . . . . . . Peak Influence 489 | . . 30 . . . 489 Initial . | . . . . . . . Average 155 | . . 3 . . . 253 Influence Increases 753 | . . 30 . . . 723 Destroy 0b10 Robot/C 160 | . . . . . . 160 Destroy 0b10 Robot/NC 10 | . . . . . . 10 Destroy Leader 40 | . . . . . . 40 Allied During Kill 37 | . . . . . . 37 Disable Machine 60 | . . . . . . 60 Destroy Structure 11 | . . . . . . 11 Partial Spotted 15 | . . . . . . 15 Lose Combat Pursuer 420 | . . 30 . . . 390 Influence Decreases 400 | . . 30 . . . 370 Time Decay 189 | . . 10 . . . 179 Search Patrol Dispatched 100 | . . . . . . 100 Lost Part 31 | . . 20 . . . 11 Lost Ally 80 | . . . . . . 80 Squads Dispatched 11 | . . . . . . 11 Investigation 8 | . . . . . . 8 Extermination 2 | . . . . . . 2 Reinforcement 1 | . . . . . . 1 Assault . | . . . . . . . Garrison . | . . . . . . . Intercept . | . . . . . . . Searches Triggered 1 | . . . . . . 1 Construction Impeded . | . . . . . . . Haulers Reinforced . | . . . . . . . Active Scanning Responses . | . . . . . . . Cargo Convoy Interrupts . | . . . . . . . Stealth | -11 -10 -10 -10 -8 -8 -6 --------- Run | Yrd Mat Min Sub Rec Scr Fac Distress Signals . | . . . . . . . Communications Jammed . | . . . . . . . Distress Signals . | . . . . . . . Times Spotted 62 | . . 6 8 . 2 46 Peak Tracking Total 15 | . . 6 8 . 2 15 Tactical Retreats 8 | . . 1 . . . 7 Traps | -11 -10 -10 -10 -8 -8 -6 ------- Run | Yrd Mat Min Sub Rec Scr Fac Traps Triggered 1 | . . . . . . 1 Indirectly . | . . . . . . . Trap Hack Attempts . | . . . . . . . Triggered . | . . . . . . . Disarmed . | . . . . . . . Reprogrammed . | . . . . . . . Reused . | . . . . . . . Traps Extracted . | . . . . . . . Installed . | . . . . . . . Triggered . | . . . . . . . Machines | -11 -10 -10 -10 -8 -8 -6 ---------- Run | Yrd Mat Min Sub Rec Scr Fac Machines Disabled 4 | . . . . . . 4 Max in Single Turn 1 | . . . . . . 1 Machines Repaired . | . . . . . . . Machines Dismantled . | . . . . . . . Machines Sabotaged . | . . . . . . . Overloaded Fab Kills . | . . . . . . . Hacking | -11 -10 -10 -10 -8 -8 -6 --------- Run | Yrd Mat Min Sub Rec Scr Fac Machines Accessed 8 | . . . . . 1 7 Terminals 1 | . . . . . . 1 Fabricators . | . . . . . . . Repair Stations . | . . . . . . . Recycling Units 6 | . . . . . . 6 Scanalyzers . | . . . . . . . Garrison Access . | . . . . . . . Total Hacks 17 | . . . . . 1 16 Successful 7 | . . . . . 1 6 Failed 10 | . . . . . . 10 Catastrophic 1 | . . . . . . 1 Database Lockouts . | . . . . . . . Manual 13 | . . . . . . 13 Terminals 3 | . . . . . . 3 Fabricators . | . . . . . . . Repair Stations . | . . . . . . . Recycling Units 13 | . . . . . . 13 Scanalyzers . | . . . . . . . Garrison Access . | . . . . . . . Terminal Hacks 1 | . . . . . 1 . Open Door 1 | . . . . . 1 . Fabricator Hacks . | . . . . . . . Repair Station Hacks . | . . . . . . . Recycling Unit Hacks . | . . . . . . . Scanalyzer . | . . . . . . . Garrison Access Hacks . | . . . . . . . Unauthorized Hacks 5 | . . . . . . 5 Terminals . | . . . . . . . Fabricators . | . . . . . . . Repair Stations . | . . . . . . . Recycling Units 5 | . . . . . . 5 Fedlink 4 | . . . . . . 4 Scrapoids 1 | . . . . . . 1 Scanalyzers . | . . . . . . . Garrison Access . | . . . . . . . Data Cores Recovered . | . . . . . . . Used . | . . . . . . . Hacking Detections 3 | . . . . . . 3 Full Trace Events 2 | . . . . . . 2 Feedback Events . | . . . . . . . Feedback Blocked . | . . . . . . . Robot Schematics Acquired . | . . . . . . . Robots Built . | . . . . . . . Authchips . | . . . . . . . Time . | . . . . . . . Total Robot Build Rating . | . . . . . . . Part Schematics Acquired . | . . . . . . . Parts Built . | . . . . . . . Authchips . | . . . . . . . Time . | . . . . . . . Total Part Build Rating . | . . . . . . . Part Studies Acquired . | . . . . . . . Parts Repaired . | . . . . . . . Time . | . . . . . . . Parts Recycled . | . . . . . . . Recycled Matter . | . . . . . . . Retrieved Matter . | . . . . . . . Retrieved Components . | . . . . . . . Parts Scanalyzed . | . . . . . . . Part Schematics Acquired . | . . . . . . . Parts Damaged . | . . . . . . . Bothacking | -11 -10 -10 -10 -8 -8 -6 ------------ Run | Yrd Mat Min Sub Rec Scr Fac Used RIF Installer . | . . . . . . . Robots Hacked . | . . . . . . . Non-combat . | . . . . . . . Combat . | . . . . . . . Robot Hacks Applied . | . . . . . . . Relay Couplers Released . | . . . . . . . Fabnet Peak Effective % . | . . . . . . . Robots Rewired . | . . . . . . . Allies Hacked . | . . . . . . . Hacks Repelled . | . . . . . . . Allies | -11 -10 -10 -10 -8 -8 -6 -------- Run | Yrd Mat Min Sub Rec Scr Fac Total Allies 5 | . . . . . . 5 Largest Group 5 | . . . . . . 5 Highest-Rated Group 140 | . . . . . . 140 Highest-Rated Ally 28 | . . . . . . 28 Total Orders . | . . . . . . . Ally Attacks 41 | . . . . . . 41 Total Damage 717 | . . . . . . 717 Kills 6 | . . . . . . 6 Allies Corrupted . | . . . . . . . Allies Melted . | . . . . . . . Intel | -11 -10 -10 -10 -8 -8 -6 ------- Run | Yrd Mat Min Sub Rec Scr Fac Active Infowar (turns) 27 | . . . . . . 27 Sensors 27 | . . . . . . 27 Robot Analysis Total . | . . . . . . . Derelict Logs Recovered 2 | . . 1 1 . . . Drone Launches . | . . . . . . . Drone Recoveries . | . . . . . . . Exploration | -11 -10 -10 -10 -8 -8 -6 ------------- Run | Yrd Mat Min Sub Rec Scr Fac Turns Passed 911 | 17 13 147 32 109 144 449 Spaces Moved 1790 | 22 25 229 63 196 285 970 Core 1074 | 22 25 229 63 196 285 254 Treads . | . . . . . . . Legs . | . . . . . . . Wheels . | . . . . . . . Hover . | . . . . . . . Flight 716 | . . . . . . 716 Fastest Speed 20 | 50 50 50 50 50 50 20 Average Speed 41 | 50 50 50 50 50 50 35 Slowest Speed 50 | 50 50 50 50 50 50 50 Overloaded Moves 29 | . . . . . . 29 Propulsion Burnouts . | . . . . . . . Robots Hopped 3 | . . . . . . 3 Potential Cave-ins . | . . . . . . . Cave-ins Triggered . | . . . . . . . Exploration Rate (%) 29 | 2 10 67 5 53 33 37 Regions Visited 6 Branch Regions 4 Pre-discovered Areas 2 | . . . 1 . . 1 Known Exits Taken . | . . . . . . . Unknown Exits Taken 6 | 1 1 1 1 1 1 . Scrap Searched . | . . . . . . . Spaces Dug 11 | . . . . . . 11 Terrain Destroyed 11 | . . . . . . 11 Melee 11 | . . . . . . 11 Projectile . | . . . . . . . AOE . | . . . . . . . Terrain Rammed . | . . . . . . . Walls Destroyed . | . . . . . . . Machines Disabled . | . . . . . . . Actions | -11 -10 -10 -10 -8 -8 -6 --------- Run | Yrd Mat Min Sub Rec Scr Fac Total 1898 | 26 24 260 62 206 285 1035 Wait 62 | 1 . 30 . 11 . 20 Move 1779 | 21 24 228 62 195 284 965 Hop 2 | . . . . . . 2 Pick Up 5 | . . . . . 1 4 Fast Attach 17 | 3 . . . . . 14 Attach 2 | . . . . . . 2 Detach 2 | . . . . . . 2 Swap 1 | . . . . . . 1 Drop 3 | 1 . . . . . 2 Fire . | . . . . . . . Melee 23 | . . . . . . 23 Ram 2 | . . 2 . . . . Kick . | . . . . . . . Crush . | . . . . . . . Escape Stasis . | . . . . . . . Rewire . | . . . . . . . Trap . | . . . . . . . Miscellaneous . | . . . . . . . Route ------- -11/Scrapyard -10/Materials -10/Mines (discovered 3 exits: [*Mat x2] / [*Sub]) -10/Subcaves (discovered 2 exits: [*Mat] / [*Rec]) -8/Recycling -8/Scraptown -6/Factory (discovered 1 exit: [*Low]) History --------- Turn | Location | Event 6 | -11/Scrapyard | Discovered new exit (range 15) 18 | -11/Scrapyard | Entered Materials 18 | -10/Materials | Discovered new exit (range 14) 31 | -10/Materials | Entered Mines 38 | -10/Mines | Learned Materials terminal intel 70 | -10/Mines | Discovered new exit (range 6) 141 | -10/Mines | Discovered new exit (range 9) 175 | -10/Mines | Discovered new exit (range 5) 178 | -10/Mines | Entered Subcaves 178 | -10/Subcaves | Discovered new exit (range 9) 179 | -10/Subcaves | Learned location of Zion (-7) 202 | -10/Subcaves | Shifting Twisted Machinery released Scrap Shield 204 | -10/Subcaves | Discovered new exit (range 12) 207 | -10/Subcaves | Core integrity fell below 50% 210 | -10/Subcaves | Entered Recycling 307 | -8/Recycling | Scanned before Scraplab entrance 315 | -8/Recycling | Build established: Mutant 318 | -8/Recycling | Discovered new exit (range 3) 319 | -8/Recycling | Entered Scraptown 352 | -8/Scraptown | Visited UFD Registry 352 | -8/Scraptown | Registered with UFD as "Thunderbot" 396 | -8/Scraptown | Met Optimus 396 | -8/Scraptown | Accepted into 0bPrime 433 | -8/Scraptown | Visited Sword Containment 439 | -8/Scraptown | Found Prototype Slashing Weapon 445 | -8/Scraptown | Civil war broke out across Scraptown 461 | -8/Scraptown | Discovered new exit (range 3) 463 | -8/Scraptown | Entered Factory 463 | -6/Factory | Evolved 8 slots: Power x1, Propulsion x7 483 | -6/Factory | Lost 3 allies 501 | -6/Factory | Identified Companion Sword 589 | -6/Factory | Core integrity fell below 50% 616 | -6/Factory | Core integrity fell below 20% 625 | -6/Factory | Scrapoid reinforcements arrived 688 | -6/Factory | Lost 4 allies 715 | -6/Factory | Loaded intel: 7 recycling unit locations 720 | -6/Factory | Learned location of Protoforge (-2) 813 | -6/Factory | Search patrols dispatched 911 | -6/Factory | Discovered new exit (range 4) 912 | -6/Factory | Destroyed by S-27 Virus with Autogun Last Messages --------------- 00836_ Acquired Shock Bomb Launcher. 00842_ Triggered Alarm Trap. 00842_ An alarm sounds. 00842_ ALERT: Alarm triggered, dispatching investigation squad. 00845_ AQXOE C46G V8PMEZAYU3FU BATRFDTKL 00865_ System corrupted: Matter fused (-9). 00868_ Connecting with Terminal... 00868_ ALERT: Suspicious activity at Terminal F012. Dispatching Investigation squad. 00886_ System corrupted: Component data lost. 00896_ Slug penetrates H-66 Slayer. 00909_ SNADOB ERB M&256PA4#AV 00909_ Connecting with Recycling Unit... 00909_ ALERT: Suspicious activity at Recycling Unit F005. Dispatching Investigation squad. 00910_ ALERT: Potential suspicious activity detected, Programmers report to Factory Zone 7Z. 00911_ EXIT=FOUND Map ----- +----------------------------------------------------+ | | | | | | | | | | | | | | | | | | | | | | | | | | | ?????????????????????????????????????????????????? | | ?????????????????????????????????????????????????? | | ?????????????????????????????????????????????????? | | ?????????????????????????????????????????????????? | | ?????????????????????????????????????????????????? | | ?????????????????????????????????????????????????? | | ????????????????????#########????????????????????? | | ????????????????????# ###+#######??????????? | | ????????????##+###### ?????????? | | ???????????##s s ?????????? | | ?????????? s < ????????? | | ?????????????? ????????? | | ????????????????????# @ ! ????????? | | ????????????????????# #### ????????? | | # ?????????????######+#######?????????????????? | | "??????????????+ +?????????????????? | | ??????????????????# """"""" ] #?????????????????? | | ??????????????????# """Y""" #?????????????????? | | ??????????????????# #?????????????????? | | ??????????????????# = ! ! #?????????????????? | | ??????????############+"########?????????????????? | | ??????????# ##????????????????????????? | | ??????????# """"""""" #?????????????????????????? | | ??????????#! #?????????????????????????? | | ########### """"""""" #?????????????????????????? | | + #?????????????????????????? | | ########### """"""""" #?????????????????????????? | | ??????????# #?????????????????????????? | | ??????????# """"""""" #?????????????????????????? | | ??????????# #?????????????????????????? | | ??????????# """"""""" #?????????????????????????? | | ??????????# #?????????????????????????? | | ??????????# ?? #?????????????????????????? | | ??????????#######+???###?????????????????????????? | | ?????????????????????????????????????????????????? | | ?????????????????????????????????????????????????? | | ?????????????????????????????????????????????????? | +----------------------------------------------------+ Best States ------------- Heat Dissipation 37 Energy Generation 14 Energy Capacity 160 Matter Stores 266 Matter Capacity 300 Sight Range 16 Robot Scan Range 15 Terrain Scan Density 10 Evasion (%) 65 Melee Accuracy 8 Item Schematics ----------------- None Robot Schematics ------------------ None Fabricated ------------ Nothing Repaired ---------- Nothing Studied --------- None Alien Tech Used ----------------- None Achievements -------------- None Challenges ------------ None Game ------ Seed RestorationGunTelecube Manual? 0 Play Time 00:15:05 Cumulative 383.2 hours Start 2025.11.07 @ 13:04:04 End 2025.11.07 @ 13:13:26 Sessions 1 Manual Loads 0 Difficulty Rogue Special Mode None Game No. 348 Rogue 348 Adventurer 0 Explorer 0 Win Type - Total 3 Types 2/1/0/0/0/0/0/0/0/0 Lore% 84 Gallery% 83 Achievement% 61 Wizard Run 0 Options --------- Layout 1 ASCII 0 Keyboard 0 Movement Numpad Keybinds 0 Fullscreen 1 Font 24/Smallcaps Map View 50x35 Zoom Use 0% Tactical HUD 1 Map Filters NONE Filters NONE Steam 1 RUN: 901d5884-91b3-4e2e-80e1-7b3c8f3888da